fUST/lending_fUST_20250719
["ID","MTS","AMOUNT","RATE_DAILY","PERIOD"]
[373113250,1752863443744,-460.0,0.00017445,2]
[373113252,1752863443759,-1144.68,0.00017445,2]
[373113254,1752863443769,-460.0,0.00017445,2]
[373113256,1752863443778,-460.0,0.00017445,2]
[373113258,1752863443789,-664.91,0.00017445,2]
[373113260,1752863443798,-460.0,0.00017445,2]
[373113262,1752863443807,-460.0,0.00017445,2]
[373113264,1752863443816,-460.0,0.00017445,2]
[373113266,1752863443827,-495.9390788,0.00017445,2]
[373113268,1752863443837,-460.0,0.00017445,2]
[373113270,1752863443847,-460.0,0.00017445,2]
[373113272,1752863443856,-460.0,0.00017445,2]
[373113274,1752863443867,-460.0,0.00017445,2]
[373113276,1752863443876,-460.0,0.00017445,2]
[373113278,1752863443886,-460.0,0.00017445,2]
[373113280,1752863443895,-460.0,0.00017446,2]
[373113282,1752863443905,-617.24,0.00017446,2]
[373113284,1752863443916,-173.99,0.00017446,2]
[373113287,1752863443929,-460.0,0.00017446,2]
[373113290,1752863443940,-524.24,0.00017446,2]
[373113292,1752863443949,-460.0,0.00017446,2]
[373113294,1752863443961,-460.0,0.00017446,2]
[373113296,1752863443972,-460.0,0.00017446,2]
[373113298,1752863443987,-460.0,0.00017446,2]
[373113300,1752863443999,-550.9,0.00017446,2]
[373113302,1752863444008,-460.0,0.00017446,2]
[373113304,1752863444018,-460.0,0.00017446,2]
[373113306,1752863444027,-460.0,0.00017446,2]
[373113308,1752863444037,-460.0,0.00017446,2]
[373113310,1752863444046,-650.82,0.00017446,2]
[373113312,1752863444056,-460.0,0.00017446,2]
[373113314,1752863444065,-460.0,0.00017446,2]
[373113316,1752863444075,-217.98,0.00017446,2]
[373113318,1752863444084,-3085.2,0.00017446,2]
[373113320,1752863444093,-460.0,0.00017447,2]
[373113322,1752863444102,-460.0,0.00017447,2]
[373113324,1752863444115,-460.0,0.00017447,2]
[373113326,1752863444124,-1947.46,0.00017447,2]
[373113328,1752863444134,-783.48,0.00017447,2]
[373113330,1752863444143,-2267.86937343,0.00017521,2]
[373113332,1752863444152,-500.0,0.00017525,2]
[373113334,1752863444163,-655.15,0.00017545,2]
[373113336,1752863444172,-1150.66,0.00017545,2]
[373113338,1752863444182,-1335.27,0.00017545,2]
[373113341,1752863444192,-460.0,0.00017545,2]
[373113342,1752863444202,-991.97,0.00017545,2]
[373113344,1752863444212,-460.0,0.00017718,2]
[373113346,1752863444221,-1302.83,0.00017718,2]
[373113348,1752863444231,-460.0,0.00017718,2]
[373113350,1752863444241,-460.0,0.00017718,2]
[373113353,1752863444251,-1180.96,0.00017718,2]
[373113355,1752863444261,-460.0,0.00017718,2]
[373113357,1752863444270,-721.39,0.00017718,2]
[373113359,1752863444279,-460.0,0.00017718,2]
[373113360,1752863444289,-460.0,0.00017718,2]
[373113362,1752863444298,-460.0,0.00017718,2]
[373113364,1752863444307,-994.19,0.00017718,2]
[373113366,1752863444316,-576.09,0.00017718,2]
[373113368,1752863444326,-460.0,0.00017718,2]
[373113371,1752863444335,-460.0,0.00017718,2]
[373113372,1752863444344,-460.0,0.00017719,2]
[373113375,1752863444354,-460.0,0.00017719,2]
[373113377,1752863444365,-460.0,0.00017719,2]
[373113378,1752863444375,-460.0,0.00017719,2]
[373113380,1752863444384,-152.51988293,0.00017719,2]
[373113382,1752863444395,-460.0,0.00017719,2]
[373113384,1752863444404,-460.0,0.00017719,2]
[373113386,1752863444413,-460.0,0.00017719,2]
[373113388,1752863444423,-2399.72,0.00017719,2]
[373113390,1752863444432,-460.0,0.00017719,2]
[373113392,1752863444441,-460.0,0.00017719,2]
[373113394,1752863444450,-563.44,0.00017719,2]
[373113396,1752863444459,-460.0,0.00017719,2]
[373113398,1752863444469,-460.0,0.00017719,2]
[373113400,1752863444478,-460.0,0.00017719,2]
[373113402,1752863444487,-460.0,0.00017719,2]
[373113405,1752863444497,-460.0,0.00017719,2]
[373113406,1752863444506,-460.0,0.00017719,2]
[373113409,1752863444516,-460.0,0.00017719,2]
[373113411,1752863444525,-1144.68,0.00017719,2]
[373113412,1752863444534,-460.0,0.00017719,2]
[373113414,1752863444545,-460.0,0.00017719,2]
[373113416,1752863444554,-664.91,0.00017719,2]
[373113419,1752863444564,-460.0,0.00017719,2]
[373113420,1752863444573,-460.0,0.00017719,2]
[373113422,1752863444582,-460.0,0.00017719,2]
[373113424,1752863444592,-460.0,0.00017719,2]
[373113426,1752863444601,-460.0,0.00017719,2]
[373113428,1752863444615,-460.0,0.00017719,2]
[373113430,1752863444625,-460.0,0.00017719,2]
[373113432,1752863444635,-460.0,0.00017719,2]
[373113435,1752863444645,-460.0,0.0001772,2]
[373113436,1752863444654,-617.24,0.0001772,2]
[373113439,1752863444664,-460.0,0.0001772,2]
[373113440,1752863444674,-524.24,0.0001772,2]
[373113442,1752863444683,-460.0,0.0001772,2]
[373113445,1752863444693,-460.0,0.0001772,2]
[373113446,1752863444702,-460.0,0.0001772,2]
[373113448,1752863444711,-550.9,0.0001772,2]
[373113450,1752863444720,-460.0,0.0001772,2]
[373113452,1752863444730,-460.0,0.0001772,2]
[373113454,1752863444739,-460.0,0.0001772,2]
[373113456,1752863444749,-460.0,0.0001772,2]
[373113458,1752863444760,-650.82,0.0001772,2]
[373113460,1752863444770,-460.0,0.0001772,2]
[373113462,1752863444779,-460.0,0.0001772,2]
[373113464,1752863444789,-3085.2,0.0001772,2]
[373113466,1752863444798,-460.0,0.00017721,2]
[373113468,1752863444807,-460.0,0.00017721,2]
[373113471,1752863444817,-460.0,0.00017721,2]
[373113472,1752863444827,-1947.46,0.00017721,2]
[373113474,1752863444836,-783.48,0.00017721,2]
[373113476,1752863444845,-1255.05411408,0.00017782,2]
[373113478,1752863444855,-655.15,0.00017819,2]
[373113480,1752863444868,-1150.66,0.00017819,2]
[373113482,1752863444877,-1335.27,0.00017819,2]
[373113485,1752863444887,-460.0,0.00017819,2]
[373113486,1752863444896,-991.97,0.00017819,2]
[373113488,1752863444905,-2267.86937343,0.00017831,2]
[373113490,1752863444914,-197.32658262,0.00017992,2]
[373113492,1752863444924,-1302.83,0.00017992,2]
[373113494,1752863444934,-460.0,0.00017992,2]
[373113496,1752863444943,-460.0,0.00017992,2]
[373113499,1752863444953,-1180.96,0.00017992,2]
[373113510,1752863445045,-460.0,0.00017992,2]
[373113513,1752863445068,-721.39,0.00017992,2]
[373113515,1752863445077,-519.67,0.00017992,2]
[373113517,1752863445086,-460.0,0.00017992,2]
[373113519,1752863445096,-460.0,0.00017992,2]
[373113521,1752863445105,-994.19,0.00017992,2]
[373113522,1752863445117,-460.0,0.00017992,2]
[373113524,1752863445127,-460.0,0.00017992,2]
[373113526,1752863445136,-460.0,0.00017993,2]
[373113528,1752863445146,-404.92811846,0.00017993,2]
[373113530,1752863445156,-460.0,0.00017993,2]
[373113532,1752863445167,-460.0,0.00017993,2]
[373113534,1752863445176,-460.0,0.00017993,2]
[373113536,1752863445185,-460.0,0.00017993,2]
[373113538,1752863445195,-460.0,0.00017993,2]
[373113540,1752863445205,-2399.72,0.00017993,2]
[373113542,1752863445214,-460.0,0.00017993,2]
[373113544,1752863445223,-460.0,0.00017993,2]
[373113546,1752863445233,-563.44,0.00017993,2]
[373113548,1752863445242,-460.0,0.00017993,2]
[373113550,1752863445251,-460.0,0.00017993,2]
[373113552,1752863445261,-362.12238409,0.00017993,2]
[373113554,1752863445271,-460.0,0.00017993,2]
[373113556,1752863445280,-460.0,0.00017993,2]
[373113559,1752863445290,-460.0,0.00017993,2]
[373113561,1752863445299,-460.0,0.00017993,2]
[373113563,1752863445307,-1144.68,0.00017993,2]
[373113565,1752863445317,-460.0,0.00017993,2]
[373113567,1752863445326,-460.0,0.00017993,2]
[373113568,1752863445335,-664.91,0.00017993,2]
[373113571,1752863445345,-460.0,0.00017993,2]
[373113573,1752863445354,-460.0,0.00017993,2]
[373113575,1752863445370,-157.39,0.00017993,2]
[373113577,1752863445379,-460.0,0.00017993,2]
[373113578,1752863445388,-460.0,0.00017993,2]
[373113580,1752863445397,-460.0,0.00017993,2]
[373113582,1752863445406,-460.0,0.00017993,2]
[373113585,1752863445416,-460.0,0.00017994,2]
[373113587,1752863445426,-617.24,0.00017994,2]
[373113589,1752863445435,-460.0,0.00017994,2]
[373113591,1752863445444,-524.24,0.00017994,2]
[373113593,1752863445453,-460.0,0.00017994,2]
[373113595,1752863445462,-460.0,0.00017994,2]
[373113597,1752863445472,-460.0,0.00017994,2]
[373113599,1752863445481,-550.9,0.00017994,2]
[373113601,1752863445490,-460.0,0.00017994,2]
[373113603,1752863445499,-460.0,0.00017994,2]
[373113605,1752863445509,-460.0,0.00017994,2]
[373113607,1752863445518,-460.0,0.00017994,2]
[373113609,1752863445527,-650.82,0.00017994,2]
[373113611,1752863445536,-460.0,0.00017994,2]
[373113613,1752863445545,-503.74129179,0.00017994,2]
[373113614,1752863445555,-3085.2,0.00017994,2]
[373113616,1752863445565,-460.0,0.00017995,2]
[373113618,1752863445575,-460.0,0.00017995,2]
[373113620,1752863445584,-460.0,0.00017995,2]
[373113622,1752863445593,-1947.46,0.00017995,2]
[373113624,1752863445603,-783.48,0.00017995,2]
[373113626,1752863445614,-3222.00339136,0.00018,2]
[373113629,1752863445623,-44102.07481973,0.00018,2]
[373113631,1752863445633,-190.0,0.00018027,3]
[373113633,1752863445642,-2102.34276448,0.00018029,2]
[373113635,1752863445651,-160.0,0.00018063,2]
[373113637,1752863445661,-160.0,0.00018063,2]
[373113639,1752863445670,-160.0,0.00018063,2]
[373113641,1752863445679,-230.89969799,0.00018063,2]
[373113642,1752863445688,-215.63268315,0.00018063,2]
[373113645,1752863445697,-476.25663856,0.00018063,2]
[373113646,1752863445707,-525.75194068,0.00018063,2]
[373113649,1752863445717,-6544.83614492,0.00018063,2]
[373113660,1752863445823,-453.46755014,0.00018063,2]
[373113682,1752863446023,-325.02,0.00018063,2]
[373113696,1752863446154,-460.74220114,0.00016621,2]
[373113698,1752863446164,-5287.11619916,0.00018063,2]
[373113700,1752863446173,-839.30593155,0.00018063,2]
[373113702,1752863446182,-160.0,0.00018063,2]
[373113704,1752863446192,-271.88647531,0.00018073,2]
[373113706,1752863446201,-655.15,0.00018093,2]
[373113708,1752863446210,-1150.66,0.00018093,2]
[373113710,1752863446220,-1335.27,0.00018093,2]
[373113712,1752863446229,-460.0,0.00018093,2]
[373113713,1752863446239,-991.97,0.00018093,2]
[373113714,1752863446248,-2267.86937343,0.00018141,2]
[373113715,1752863446257,-160.0,0.00018146,2]
[373113716,1752863446267,-494.8,0.00018159,3]
[373113717,1752863446276,-420.0,0.00018161,2]
[373113718,1752863446286,-412.0,0.00018161,2]
[373113719,1752863446295,-385.0,0.00018161,2]
[373113720,1752863446304,-1302.83,0.00018266,2]
[373113721,1752863446314,-460.0,0.00018266,2]
[373113722,1752863446323,-460.0,0.00018266,2]
[373113723,1752863446332,-1180.96,0.00018266,2]
[373113724,1752863446341,-388.61295607,0.00018266,2]
[373113725,1752863446351,-721.39,0.00018266,2]
[373113726,1752863446360,-460.0,0.00018266,2]
[373113727,1752863446369,-460.0,0.00018266,2]
[373113729,1752863446379,-994.19,0.00018266,2]
[373113730,1752863446388,-460.0,0.00018266,2]
[373113732,1752863446397,-441.38121459,0.00018266,2]
[373113734,1752863446406,-460.0,0.00018267,2]
[373113736,1752863446415,-460.0,0.00018267,2]
[373113738,1752863446425,-415.49,0.00018267,2]
[373113740,1752863446434,-460.0,0.00018267,2]
[373113742,1752863446444,-460.0,0.00018267,2]
[373113744,1752863446453,-460.0,0.00018267,2]
[373113746,1752863446462,-2399.72,0.00018267,2]
[373113748,1752863446473,-460.0,0.00018267,2]
[373113750,1752863446482,-460.0,0.00018267,2]
[373113752,1752863446492,-563.44,0.00018267,2]
[373113754,1752863446501,-460.0,0.00018267,2]
[373113756,1752863446510,-460.0,0.00018267,2]
[373113758,1752863446519,-460.0,0.00018267,2]
[373113760,1752863446528,-460.0,0.00018267,2]
[373113762,1752863446537,-460.0,0.00018267,2]
[373113764,1752863446546,-1144.68,0.00018267,2]
[373113766,1752863446555,-460.0,0.00018267,2]
[373113768,1752863446566,-460.0,0.00018267,2]
[373113769,1752863446575,-664.91,0.00018267,2]
[373113771,1752863446584,-460.0,0.00018267,2]
[373113773,1752863446594,-460.0,0.00018267,2]
[373113775,1752863446603,-460.0,0.00018267,2]
[373113777,1752863446613,-460.0,0.00018267,2]
[373113779,1752863446623,-460.0,0.00018267,2]
[373113781,1752863446632,-460.0,0.00018268,2]
[373113783,1752863446643,-617.24,0.00018268,2]
[373113785,1752863446653,-460.0,0.00018268,2]
[373113787,1752863446663,-524.24,0.00018268,2]
[373113789,1752863446673,-460.0,0.00018268,2]
[373113791,1752863446682,-460.0,0.00018268,2]
[373113793,1752863446691,-550.9,0.00018268,2]
[373113795,1752863446700,-460.0,0.00018268,2]
[373113797,1752863446709,-460.0,0.00018268,2]
[373113799,1752863446719,-460.0,0.00018268,2]
[373113801,1752863446728,-460.0,0.00018268,2]
[373113803,1752863446737,-650.82,0.00018268,2]
[373113805,1752863446746,-3085.2,0.00018268,2]
[373113807,1752863446759,-460.0,0.00018269,2]
[373113809,1752863446769,-460.0,0.00018269,2]
[373113811,1752863446778,-455.01697286,0.00018269,2]
[373113813,1752863446789,-1947.46,0.00018269,2]
[373113815,1752863446798,-783.48,0.00018269,2]
[373113817,1752863446807,-655.15,0.00018367,2]
[373113819,1752863446816,-1150.66,0.00018367,2]
[373113821,1752863446827,-1335.27,0.00018367,2]
[373113823,1752863446836,-460.0,0.00018367,2]
[373113825,1752863446845,-991.97,0.00018367,2]
[373113827,1752863446855,-791.927,0.00018375,2]
[373113829,1752863446866,-151.0,0.00018378,2]
[373113831,1752863446875,-207.4,0.00018378,2]
[373113833,1752863446885,-151.0,0.00018378,2]
[373113835,1752863446894,-151.0,0.00018378,2]
[373113837,1752863446903,-151.0,0.00018378,2]
[373113839,1752863446912,-151.0,0.00018378,2]
[373113841,1752863446921,-151.0,0.00018378,2]
[373113843,1752863446930,-151.0,0.00018378,2]
[373113845,1752863446940,-151.0,0.00018378,2]
[373113847,1752863446949,-151.0,0.00018378,2]
[373113849,1752863446958,-151.0,0.00018378,2]
[373113851,1752863446967,-151.0,0.00018378,2]
[373113853,1752863446976,-151.0,0.00018378,2]
[373113855,1752863446985,-151.0,0.00018378,2]
[373113857,1752863446995,-151.0,0.00018378,2]
[373113859,1752863447004,-151.0,0.00018378,2]
[373113861,1752863447013,-151.0,0.00018378,2]
[373113863,1752863447022,-151.0,0.00018378,2]
[373113865,1752863447031,-151.0,0.00018378,2]
[373113867,1752863447040,-151.0,0.00018378,2]
[373113869,1752863447049,-151.0,0.00018378,2]
[373113871,1752863447059,-1949.51818756,0.00018378,2]
[373113873,1752863447068,-2267.86937343,0.00018452,2]
[373113875,1752863447078,-1302.83,0.0001854,2]
[373113877,1752863447087,-460.0,0.0001854,2]
[373113879,1752863447096,-329.24935151,0.0001854,2]
[373113881,1752863447106,-1180.96,0.0001854,2]
[373113882,1752863447116,-721.39,0.0001854,2]
[373113885,1752863447126,-460.0,0.0001854,2]
[373113886,1752863447135,-460.0,0.0001854,2]
[373113888,1752863447144,-994.19,0.0001854,2]
[373113890,1752863447153,-460.0,0.0001854,2]
[373113892,1752863447163,-460.0,0.00018541,2]
[373113894,1752863447172,-604.09,0.00018541,2]
[373113896,1752863447186,-460.0,0.00018541,2]
[373113898,1752863447195,-460.0,0.00018541,2]
[373113900,1752863447205,-460.0,0.00018541,2]
[373113902,1752863447214,-2399.72,0.00018541,2]
[373113904,1752863447223,-460.0,0.00018541,2]
[373113906,1752863447233,-580.34,0.00018541,2]
[373113918,1752863447342,-563.44,0.00018541,2]
[373113920,1752863447352,-460.0,0.00018541,2]
[373113922,1752863447363,-460.0,0.00018541,2]
[373113924,1752863447373,-366.57,0.00018541,2]
[373113926,1752863447382,-460.0,0.00018541,2]
[373113928,1752863447391,-460.0,0.00018541,2]
[373113930,1752863447401,-439.66097776,0.00018541,2]
[373114015,1752863622615,169.850189,0.00015722,2]
[373114016,1752863622852,169.850189,0.00015722,120]
[373114017,1752864095632,24900.0,0.00015523,2]
[373114019,1752864144121,477.386434,0.00013699,2]
[373114023,1752864522329,45678.2595802,0.00015523,2]
[373114025,1752864576672,200.15050736,0.000164,2]
[373114072,1752864632000,-1098.17234982,0.00016423,2]
[373114073,1752864632010,-155.18898912,0.000165,2]
[373114074,1752864632019,-155.18898912,0.000165,2]
[373114075,1752864632029,-1200.0,0.0001652,2]
[373114076,1752864632039,-34.30128477,0.0001652,2]
[373114077,1752864632050,-429.82180201,0.0001652,2]
[373114106,1752864637823,-483.51810416,0.00016514,3]
[373114108,1752864637835,-258.68189584,0.00016514,3]
[373114109,1752864637844,-97.79318094,0.0001652,2]
[373114110,1752864637877,-638.08373228,0.0001652,2]
[373114111,1752864637887,-300.0,0.00016521,2]
[373114112,1752864637899,-155.0,0.00016521,2]
[373114113,1752864637908,-300.0,0.00016521,2]
[373114114,1752864637918,-244.0,0.00016521,2]
[373114115,1752864637928,-460.0,0.00016522,2]
[373114116,1752864637938,-460.0,0.00016522,2]
[373114117,1752864637947,-460.0,0.00016522,2]
[373114118,1752864637957,-460.0,0.00016522,2]
[373114119,1752864637966,-460.0,0.00016522,2]
[373114120,1752864637976,-460.0,0.00016522,2]
[373114121,1752864637986,-162.0,0.00016522,2]
[373114122,1752864637995,-569.14860028,0.00016522,2]
[373114123,1752864638005,-460.0,0.00016522,2]
[373114124,1752864638015,-460.0,0.00016522,2]
[373114125,1752864638024,-1238.69,0.00016522,2]
[373114126,1752864638033,-460.0,0.00016522,2]
[373114127,1752864638043,-460.0,0.00016522,2]
[373114128,1752864638053,-463.44105018,0.00016522,2]
[373114129,1752864638067,-460.0,0.00016522,2]
[373114130,1752864638076,-460.0,0.00016522,2]
[373114131,1752864638086,-1092.31,0.00016522,2]
[373114132,1752864638096,-460.0,0.00016522,2]
[373114133,1752864638106,-460.0,0.00016522,2]
[373114134,1752864638116,-646.91,0.00016522,2]
[373114135,1752864638125,-205.71818384,0.00016522,2]
[373114136,1752864638136,-228.90264443,0.00016522,2]
[373114137,1752864638146,-460.0,0.00016522,2]
[373114138,1752864638155,-507.74814976,0.00016522,2]
[373114139,1752864638164,-460.0,0.00016522,2]
[373114140,1752864638174,-460.0,0.00016522,2]
[373114141,1752864638184,-460.0,0.00016522,2]
[373114142,1752864638193,-460.0,0.00016522,2]
[373114143,1752864638203,-460.0,0.00016522,2]
[373114144,1752864638213,-460.0,0.00016522,2]
[373114145,1752864638222,-951.99,0.00016522,2]
[373114146,1752864638232,-460.0,0.00016522,2]
[373114147,1752864638242,-460.0,0.00016522,2]
[373114148,1752864638251,-606.35579261,0.00016522,2]
[373114149,1752864638261,-460.0,0.00016522,2]
[373114150,1752864638270,-460.0,0.00016522,2]
[373114151,1752864638280,-460.0,0.00016522,2]
[373114152,1752864638289,-460.0,0.00016523,2]
[373114153,1752864638298,-460.0,0.00016523,2]
[373114154,1752864638308,-460.0,0.00016523,2]
[373114155,1752864638317,-460.0,0.00016523,2]
[373114156,1752864638327,-460.0,0.00016523,2]
[373114157,1752864638336,-460.0,0.00016523,2]
[373114158,1752864638346,-460.0,0.00016523,2]
[373114159,1752864638355,-541.59,0.00016523,2]
[373114160,1752864638364,-460.0,0.00016523,2]
[373114161,1752864638374,-460.0,0.00016523,2]
[373114162,1752864638383,-2330.05,0.00016523,2]
[373114163,1752864638392,-460.0,0.00016523,2]
[373114164,1752864638402,-460.0,0.00016523,2]
[373114165,1752864638411,-460.0,0.00016523,2]
[373114166,1752864638421,-460.0,0.00016523,2]
[373114167,1752864638431,-1072.94,0.00016523,2]
[373114168,1752864638440,-460.0,0.00016523,2]
[373114169,1752864638450,-506.8024177,0.00016523,2]
[373114170,1752864638459,-460.0,0.00016523,2]
[373114171,1752864638469,-530.49,0.00016523,2]
[373114172,1752864638479,-460.0,0.00016523,2]
[373114173,1752864638488,-413.57341483,0.00016523,2]
[373114174,1752864638498,-460.0,0.00016523,2]
[373114175,1752864638507,-460.0,0.00016523,2]
[373114176,1752864638517,-460.0,0.00016523,2]
[373114177,1752864638527,-151.0,0.00016523,2]
[373114178,1752864638652,-460.0,0.00016523,2]
[373114179,1752864638662,-460.0,0.00016523,2]
[373114180,1752864638671,-460.0,0.00016523,2]
[373114181,1752864638681,-460.0,0.00016523,2]
[373114182,1752864638690,-460.0,0.00016523,2]
[373114183,1752864638699,-460.0,0.00016523,2]
[373114184,1752864638709,-500.0,0.00016523,2]
[373114185,1752864638719,-151.0,0.00016523,2]
[373114186,1752864638728,-263.04368331,0.00016523,2]
[373114187,1752864638737,-152.2061558,0.00016523,2]
[373114188,1752864638747,-151.0,0.00016523,2]
[373114189,1752864638756,-460.0,0.00016523,2]
[373114190,1752864638765,-151.0,0.00016523,2]
[373114191,1752864638775,-460.0,0.00016523,2]
[373114192,1752864638784,-151.0,0.00016523,2]
[373114193,1752864638794,-666.15,0.00016523,2]
[373114194,1752864638803,-389.0019488,0.00016523,2]
[373114195,1752864638815,-70.9980512,0.00016523,2]
[373114196,1752864638825,-460.0,0.00016523,2]
[373114197,1752864638836,-460.0,0.00016523,2]
[373114198,1752864638848,-460.0,0.00016523,2]
[373114199,1752864638859,-460.0,0.00016523,2]
[373114200,1752864638870,-460.0,0.00016523,2]
[373114201,1752864638879,-460.0,0.00016523,2]
[373114202,1752864638889,-460.0,0.00016523,2]
[373114203,1752864638899,-460.0,0.00016523,2]
[373114204,1752864638908,-460.0,0.00016523,2]
[373114205,1752864638919,-460.0,0.00016523,2]
[373114206,1752864638928,-460.0,0.00016523,2]
[373114207,1752864638940,-460.0,0.00016523,2]
[373114208,1752864638951,-460.0,0.00016523,2]
[373114209,1752864638962,-460.0,0.00016523,2]
[373114210,1752864638972,-460.0,0.00016523,2]
[373114211,1752864638982,-198.0,0.00016523,2]
[373114212,1752864638992,-460.0,0.00016523,2]
[373114213,1752864639002,-500.0,0.00016523,2]
[373114214,1752864639011,-239.85128158,0.00016523,2]
[373114215,1752864639022,-182.17717124,0.00016523,2]
[373114216,1752864639031,-500.0,0.00016523,2]
[373114217,1752864639041,-500.0,0.00016523,2]
[373114218,1752864639051,-500.0,0.00016523,2]
[373114219,1752864639065,-500.0,0.00016523,2]
[373114220,1752864639074,-500.0,0.00016523,2]
[373114221,1752864639084,-500.0,0.00016523,2]
[373114222,1752864639093,-500.0,0.00016523,2]
[373114223,1752864639103,-500.0,0.00016523,2]
[373114224,1752864639112,-250.0,0.00016523,2]
[373114225,1752864639122,-500.0,0.00016523,2]
[373114226,1752864639132,-500.0,0.00016523,2]
[373114227,1752864639142,-500.0,0.00016523,2]
[373114228,1752864639152,-500.0,0.00016523,2]
[373114229,1752864639161,-200.0,0.00016523,2]
[373114230,1752864639171,-500.0,0.00016523,2]
[373114231,1752864639181,-381.85104144,0.00016523,2]
[373114232,1752864639190,-48350.95948762,0.00016524,2]
[373114233,1752864639202,-5525.19697198,0.00016524,2]
[373114234,1752864639214,-25509.61987517,0.00016524,2]
[373114235,1752864639236,-22905.1592162,0.00016524,2]
[373114839,1752864645966,-508.39,0.00016522,2]
[373114840,1752864645978,-744.48,0.00016523,2]
[373114841,1752864645990,-476.94684712,0.00016523,2]
[373114842,1752864646003,-10503.42707504,0.00016524,2]
[373114843,1752864646014,-431.33946569,0.00016573,2]
[373114844,1752864646027,-470.27935055,0.00016573,2]
[373114845,1752864646039,-460.0,0.00016621,2]
[373114846,1752864646051,-460.0,0.00016621,2]
[373114847,1752864646065,-460.0,0.00016621,2]
[373114848,1752864646075,-460.0,0.00016621,2]
[373114849,1752864646086,-460.0,0.00016621,2]
[373114850,1752864646096,-460.0,0.00016621,2]
[373114851,1752864646108,-460.0,0.00016621,2]
[373114852,1752864646120,-460.0,0.00016621,2]
[373114853,1752864646132,-460.0,0.00016621,2]
[373114854,1752864646144,-500.0,0.00016621,2]
[373114855,1752864646158,-151.0,0.00016621,2]
[373114856,1752864646171,-151.0,0.00016621,2]
[373114857,1752864646182,-151.0,0.00016621,2]
[373114858,1752864646194,-151.0,0.00016621,2]
[373114859,1752864646206,-151.0,0.00016621,2]
[373114860,1752864646220,-151.0,0.00016621,2]
[373114861,1752864646233,-248.47952707,0.00016621,2]
[373114862,1752864646245,-460.0,0.00016621,2]
[373114865,1752864646258,-151.0,0.00016621,2]
[373114866,1752864646269,-460.0,0.00016621,2]
[373114869,1752864646279,-460.0,0.00016621,2]
[373114870,1752864646289,-460.0,0.00016621,2]
[373114872,1752864646299,-460.0,0.00016621,2]
[373114874,1752864646310,-460.0,0.00016621,2]
[373114877,1752864646322,-634.85,0.00016621,2]
[373114879,1752864646336,-460.0,0.00016621,2]
[373114881,1752864646348,-460.0,0.00016622,2]
[373114883,1752864646360,-460.0,0.00016622,2]
[373114885,1752864646371,-460.0,0.00016622,2]
[373114887,1752864646380,-460.0,0.00016622,2]
[373114889,1752864646391,-460.0,0.00016622,2]
[373114890,1752864646403,-460.0,0.00016622,2]
[373114891,1752864646414,-460.0,0.00016622,2]
[373114892,1752864646426,-508.67,0.00016622,2]
[373114893,1752864646436,-460.0,0.00016622,2]